fUSD/lending_fUSD_20250820
["ID","MTS","AMOUNT","RATE_DAILY","PERIOD"]
[380395130,1755725456369,-400.0,0.00030136,120]
[380395131,1755725456379,-400.0,0.00030136,120]
[380395132,1755725456389,-490.92,0.00030136,120]
[380395133,1755725456398,-400.0,0.00030136,120]
[380395134,1755725456407,-470.0,0.00030136,120]
[380395135,1755725456416,-229.47114114,0.00030136,120]
[380395136,1755725456425,-400.0,0.00030136,120]
[380395137,1755725456434,-400.0,0.00030136,120]
[380395138,1755725456443,-400.0,0.00030136,120]
[380395139,1755725456452,-400.0,0.00030136,120]
[380395140,1755725456461,-400.0,0.00030136,120]
[380395141,1755725456470,-400.0,0.00030136,120]
[380395142,1755725456480,-400.0,0.00030136,120]
[380395143,1755725456488,-400.0,0.00030136,120]
[380395144,1755725456497,-1610.29,0.00030136,120]
[380395145,1755725456506,-425.23,0.00030136,120]
[380395146,1755725456515,-400.0,0.00030136,120]
[380395147,1755725456524,-1243.03,0.00030136,120]
[380395148,1755725456533,-400.0,0.00030136,120]
[380395149,1755725456542,-400.0,0.00030136,120]
[380395150,1755725456551,-1445.53,0.00030136,120]
[380395151,1755725456560,-400.0,0.00030136,120]
[380395152,1755725456569,-692.65,0.00030136,120]
[380395153,1755725456578,-310.0,0.00030136,120]
[380395154,1755725456588,-400.0,0.00030136,120]
[380395155,1755725456597,-400.0,0.00030136,120]
[380395156,1755725456605,-400.0,0.00030136,120]
[380395157,1755725456614,-400.0,0.00030136,120]
[380395158,1755725456623,-400.0,0.00030136,120]
[380395159,1755725456632,-544.44,0.00030136,120]
[380395160,1755725456641,-400.0,0.00030136,120]
[380395161,1755725456650,-400.0,0.00030136,120]
[380395162,1755725456659,-400.00000083,0.00030136,120]
[380395163,1755725456668,-400.0,0.00030136,60]
[380395164,1755725456677,-400.0,0.00030136,120]
[380395165,1755725456687,-400.0,0.00030136,120]
[380395166,1755725456696,-400.0,0.00030136,120]
[380395167,1755725456706,-400.0,0.00030136,120]
[380395168,1755725456715,-400.0,0.00030136,120]
[380395169,1755725456724,-400.0,0.00030136,120]
[380395170,1755725456733,-400.0,0.00030136,120]
[380395171,1755725456742,-400.0,0.00030136,120]
[380395172,1755725456752,-400.0,0.00030136,120]
[380395173,1755725456761,-306.52494,0.00030136,7]
[380395174,1755725456771,-400.0,0.00030136,120]
[380395175,1755725456780,-306.52494,0.00030136,7]
[380395176,1755725456790,-161.135205,0.00030136,120]
[380395177,1755725456799,-306.52494,0.00030136,7]
[380395178,1755725456808,-151.0,0.00030136,7]
[380395179,1755725456817,-400.0,0.00030136,120]
[380395180,1755725456827,-306.52494,0.00030136,7]
[380395181,1755725456836,-151.0,0.00030136,7]
[380395182,1755725456848,-350.710148,0.00030136,7]
[380395183,1755725456866,-400.0,0.00030136,120]
[380395184,1755725456876,-350.710148,0.00030136,7]
[380395185,1755725456884,-350.710148,0.00030136,7]
[380395186,1755725456893,-400.0,0.00030136,120]
[380395187,1755725456902,-350.710148,0.00030136,7]
[380395188,1755725456912,-400.0,0.00030136,120]
[380395189,1755725456921,-400.0,0.00030136,120]
[380395190,1755725456930,-400.0,0.00030136,120]
[380395191,1755725456939,-400.0,0.00030136,120]
[380395192,1755725456948,-401.08,0.00030136,120]
[380395193,1755725456956,-151.0,0.00030136,7]
[380395194,1755725456965,-557.62,0.00030136,120]
[380395195,1755725456974,-151.0,0.00030136,7]
[380395196,1755725456984,-268.545309,0.00030136,7]
[380395197,1755725456993,-242.164717,0.00030136,7]
[380395198,1755725457003,-242.164717,0.00030136,7]
[380395199,1755725457012,-242.164717,0.00030136,7]
[380395200,1755725457022,-242.164717,0.00030136,7]
[380395201,1755725457031,-265.572609,0.00030136,7]
[380395202,1755725457040,-265.572609,0.00030136,7]
[380395203,1755725457049,-265.572609,0.00030136,7]
[380395204,1755725457059,-265.572609,0.00030136,7]
[380395205,1755725457068,-400.0,0.00030136,120]
[380395206,1755725457078,-400.0,0.00030136,120]
[380395207,1755725457087,-471.08,0.00030136,120]
[380395208,1755725457096,-400.0,0.00030136,120]
[380395209,1755725457108,-400.0,0.00030136,120]
[380395210,1755725457118,-400.0,0.00030136,120]
[380395211,1755725457127,-400.0,0.00030136,120]
[380395212,1755725457136,-400.0,0.00030136,120]
[380395213,1755725457147,-500.0,0.00030138,2]
[380395214,1755725457156,-150.0,0.00030138,2]
[380395215,1755725457166,-500.0,0.00030138,2]
[380395216,1755725457176,-500.0,0.00030138,2]
[380395217,1755725457188,-150.0,0.00030138,2]
[380395218,1755725457197,-500.0,0.00030138,2]
[380395219,1755725457207,-500.0,0.00030138,2]
[380395220,1755725457216,-500.0,0.00030138,2]
[380395221,1755725457226,-150.0,0.00030138,2]
[380395222,1755725457235,-262.27415815,0.00030138,2]
[380395223,1755725457245,-500.0,0.00030138,2]
[380395224,1755725457254,-401.41204159,0.00030138,2]
[380395225,1755725457264,-500.0,0.00030138,2]
[380395226,1755725457273,-150.0,0.00030138,2]
[380395227,1755725457282,-667.8340439,0.00030144,2]
[380395228,1755725457291,-1184.32,0.00030164,2]
[380395229,1755725457300,-1184.32,0.00030164,2]
[380395230,1755725457309,-1184.32,0.00030164,2]
[380395231,1755725457318,-1184.32,0.00030164,2]
[380395232,1755725457327,-1184.32,0.00030164,2]
[380395233,1755725457338,-1339.4,0.00030164,2]
[380395234,1755725457347,-415.15317086,0.00030171,2]
[380395235,1755725457357,-500.0,0.00030173,5]
[380395236,1755725457365,-150.0,0.00030181,7]
[380395237,1755725457375,-2483.07585264,0.00030187,15]
[380395238,1755725457384,-500.0,0.00030191,15]
[380395239,1755725457393,-500.0,0.00030199,10]
[380395240,1755725457402,-500.0,0.00030199,10]
[380395241,1755725457412,-200.0,0.00030199,2]
[380395242,1755725457421,-27451.838509,0.000302,2]
[380395243,1755725457431,-843.97594471,0.000302,30]
[380395244,1755725457440,-170330.17,0.000302,7]
[380395245,1755725457449,-150.0,0.00030205,7]
[380395246,1755725457458,-300.0,0.00030237,2]
[380395247,1755725457467,-150.0,0.00030282,7]
[380395248,1755725457476,-2273.0,0.00030301,2]
[380395249,1755725457485,-833.97605072,0.00030301,2]
[380395250,1755725457494,-1769.01,0.00030329,15]
[380395251,1755725457503,-415.15317086,0.00030363,2]
[380395252,1755725457512,-159.14190251,0.00030384,7]
[380395253,1755725457521,-245.36073081,0.00030384,7]
[380395254,1755725457532,-211.89600369,0.00030384,7]
[380395255,1755725457541,-150.0,0.00030384,7]
[380395256,1755725457551,-164.8265782,0.00030384,7]
[380395257,1755725457562,-169.78108176,0.00030384,7]
[380395258,1755725457571,-150.0,0.00030384,7]
[380395259,1755725457582,-269.44347805,0.00030384,7]
[380395260,1755725457592,-150.0,0.00030384,7]
[380395261,1755725457603,-268.70783678,0.00030384,7]
[380395262,1755725457614,-213.0431994,0.00030384,7]
[380395263,1755725457623,-265.39420341,0.00030384,7]
[380395264,1755725457632,-300.0,0.000304,2]
[380395265,1755725457641,-300.0,0.000304,2]
[380395266,1755725457653,-300.0,0.000304,2]
[380395267,1755725457664,-300.0,0.000304,2]
[380395268,1755725457673,-332.8894894,0.000304,2]
[380395269,1755725457682,-1596064.81685851,0.00030402,22]
[380395270,1755725459131,-635.43999999,0.00030402,22]
[380395271,1755725459144,-17199.0,0.00030402,22]
[380395272,1755725459156,-10247.17532351,0.00030402,22]
[380395273,1755725459167,-23508.59504222,0.00030402,22]
[380395274,1755725459179,-1754.13510245,0.00030402,22]
[380395275,1755725459191,-967.54661949,0.00030402,22]
[380395276,1755725459208,-2188.56659074,0.00030402,22]
[380395277,1755725459221,-3332.61991817,0.00030402,22]
[380395278,1755725459232,-1060.98778177,0.00030402,22]
[380395279,1755725459246,-14105.66385033,0.00030402,22]
[380395280,1755725459266,-3646.76827121,0.00030402,22]
[380395281,1755725459383,-304.21651587,0.000109,2]
[380395282,1755725459393,-2970.09755837,0.00011,2]
[380395283,1755725459412,-1283.44842186,0.00011,2]
[380395284,1755725459431,-98404.52092686,0.00011,2]
[380395285,1755725459560,-1656.7319502,0.00011,2]
[380395286,1755725459580,-1615.72,0.00011,2]
[380395287,1755725459775,-304.21651587,0.000109,2]
[380395288,1755725459786,-500.0,0.00010999,2]
[380395289,1755725459795,-495.02476195,0.00010999,2]
[380395290,1755725459804,-10567.4724227,0.00011,2]
[380395291,1755725459820,-935.748,0.00011,2]
[380395292,1755725459837,-10977.27581641,0.00011,2]
[380395293,1755725459850,-1118.20000034,0.00011,2]
[380395294,1755725459863,-855.65800931,0.00011,2]
[380395295,1755725459878,-74986.4896389,0.00011,2]
[380395296,1755725459888,-22234.38000005,0.00011,2]
[380395298,1755725614136,-359.18599237,0.000108,2]
[380395299,1755725614166,-304.21651587,0.000109,2]
[380395300,1755725614217,-895.41498352,0.000109,2]
[380395301,1755725622271,-659.88556802,0.000109,2]
[380395302,1755725622298,-304.21651587,0.000109,2]
[380395303,1755725622347,-294.01583222,0.00013699,2]
[380395304,1755725629701,-289.28416778,0.00013699,2]
[380395305,1755725629734,-1643.65166444,0.00015947,2]
[380395306,1755725637060,-2222.22,0.00015947,2]
[380395309,1755726159463,-463.15,0.00010999,2]
[380395310,1755726167945,-154.38,0.00010999,2]
[380395311,1755726175899,-400.0,0.00010999,2]
[380395345,1755726631678,-300.0,0.00010998,2]
[380395346,1755726631688,-1200.0,0.00010998,2]
[380395347,1755726631698,-250.0,0.00010999,2]
[380395348,1755726631707,-602.97,0.00010999,2]
[380395349,1755726631716,-538.7064344,0.00010999,2]
[380395350,1755726631739,-1081.7935656,0.00010999,2]
[380395351,1755726631748,-1620.5,0.00010999,2]
[380395352,1755726631757,-1620.5,0.00010999,2]
[380395353,1755726631766,-1620.5,0.00010999,2]
[380395354,1755726631776,-1620.5,0.00010999,2]
[380395355,1755726631785,-1620.5,0.00010999,2]
[380395356,1755726631794,-261.23825729,0.00010999,2]
[380395357,1755726631804,-509.0,0.00010999,2]
[380395358,1755726631815,-850.26174271,0.00010999,2]
[380395359,1755726631824,-186.38079968,0.00010999,2]
[380395360,1755726631839,-356.0,0.00010999,2]
[380395361,1755726631922,-1078.11920032,0.00010999,2]
[380395362,1755726631931,-1620.5,0.00010999,2]
[380395363,1755726631941,-1620.5,0.00010999,2]
[380395364,1755726631950,-1620.5,0.00010999,2]
[380395365,1755726631959,-1267.09239379,0.00010999,2]
[380395366,1755726631985,-353.40760621,0.00010999,2]
[380395367,1755726631994,-1620.5,0.00010999,2]
[380395368,1755726632003,-52.59239378,0.00010999,2]
[380395369,1755726632014,-693.6873531,0.00010999,2]
[380395492,1755726639280,-874.22025312,0.00010999,2]
[380395493,1755726639289,-1620.5,0.00010999,2]
[380395494,1755726639298,-1620.5,0.00010999,2]
[380395495,1755726639308,-445.36086876,0.00010999,2]
[380395496,1755726639323,-1175.13913124,0.00010999,2]
[380395497,1755726639333,-1620.5,0.00010999,2]
[380395498,1755726639342,-1322.68234076,0.00010999,2]
[380395499,1755726639354,-297.81765924,0.00010999,2]
[380395500,1755726639363,-1620.5,0.00010999,2]
[380395502,1755726639373,-1620.5,0.00010999,2]
[380395504,1755726639382,-1620.5,0.00010999,2]
[380395506,1755726639391,-1620.53204987,0.00010999,2]
[380395508,1755726639400,-4142.39999999,0.00011,2]
[380395510,1755726639410,-250.0,0.00012098,2]
[380395512,1755726639419,-1680.0,0.00012098,2]
[380395514,1755726639432,-240.0,0.00013308,2]
[380395517,1755726639442,-605.16,0.00013699,2]
[380395519,1755726639451,-184.12,0.00015752,2]
[380395521,1755726639460,-1829.97,0.0001589,2]
[380395523,1755726639471,-500.0,0.00015938,2]
[380395525,1755726639480,-151.0,0.00015938,2]
[380395527,1755726639490,-151.0,0.00015938,2]
[380395529,1755726639500,-151.0,0.00015938,2]
[380395531,1755726639510,-151.0,0.00015938,2]
[380395533,1755726639519,-276.03609368,0.00015938,2]
[380395535,1755726639529,-13387.48499252,0.00015946,2]
[380395537,1755726639538,-500.0,0.00015946,2]
[380395539,1755726639549,-208.80198278,0.00015946,2]
[380395541,1755726639558,-28392.71272192,0.00015947,2]
[380395543,1755726639574,-22166.57593172,0.00015947,2]
[380395544,1755726639583,-184.12,0.00015976,2]
[380395546,1755726639593,-250.0,0.00016078,2]
[380395547,1755726639602,-213.01,0.0001613,2]
[380395549,1755726639611,-153.0,0.00016223,2]
[380395550,1755726639621,-167.9,0.00016246,2]
[380395552,1755726639630,-925.22,0.00016317,2]
[380395553,1755726639639,-2048.21,0.00016357,2]
[380395555,1755726639649,-2751.0,0.00016431,2]
[380395557,1755726639658,-160.0,0.00016431,7]
[380395558,1755726639668,-666.0,0.00016438,3]
[380395560,1755726639677,-200.0,0.00016441,2]
[380395561,1755726639686,-2408.12,0.00016454,2]
[380395563,1755726639695,-200.0,0.00016454,2]
[380395564,1755726639705,-5500.76,0.00016467,2]
[380395566,1755726639714,-204.21,0.00016515,2]
[380395567,1755726639723,-458.0,0.00016522,2]
[380395569,1755726639733,-500.0,0.00016522,2]
[380395570,1755726639742,-500.0,0.00016522,2]
[380395572,1755726639752,-150.0,0.00016522,2]
[380395574,1755726639762,-500.0,0.00016522,2]
[380395576,1755726639772,-150.0,0.00016522,2]
[380395577,1755726639782,-500.0,0.00016522,2]
[380395579,1755726639791,-150.0,0.00016522,2]
[380395580,1755726639801,-35489.68,0.00016577,2]
[380395582,1755726639810,-4801.92313892,0.00016613,2]
[380395584,1755726639819,-155.51,0.00016713,2]
[380395585,1755726639828,-155.51,0.00016728,2]
[380395587,1755726639838,-155.51,0.00016742,2]
[380395588,1755726639847,-155.51,0.00016757,2]
[380395590,1755726639858,-155.51,0.00016772,2]
[380395592,1755726639867,-155.51,0.00016787,2]
[380395593,1755726639877,-500.0,0.00016796,2]
[380395595,1755726639887,-500.0,0.00016796,2]
[380395597,1755726639896,-401.41204159,0.00016796,2]
[380395598,1755726639906,-500.0,0.00016796,2]
[380395600,1755726639916,-150.0,0.00016796,2]
[380395602,1755726639926,-155.51,0.00016802,2]
[380395603,1755726639935,-155.51,0.00016817,2]
[380395605,1755726639944,-155.51,0.00016831,2]
[380395607,1755726639953,-155.51,0.00016846,2]
[380395608,1755726639963,-155.51,0.00016861,2]
[380395610,1755726639972,-155.51,0.00016876,2]
[380395612,1755726639981,-155.51,0.00016891,2]
[380395613,1755726639990,-155.51,0.00016905,2]
[380395615,1755726640000,-155.51,0.0001692,2]
[380395617,1755726640009,-155.51,0.00016935,2]
[380395618,1755726640018,-155.51,0.0001695,2]
[380395620,1755726640028,-168.46,0.00017011,2]
[380395622,1755726640038,-414.45014642,0.0001707,2]
[380395623,1755726640047,-500.0,0.0001707,2]
[380395625,1755726640057,-150.0,0.0001707,2]
[380395627,1755726640066,-1000.0,0.00017142,2]
[380395628,1755726640075,-500.0,0.00017344,2]
[380395630,1755726640087,-150.0,0.00017344,2]
[380395632,1755726640096,-1820.0,0.00017541,2]
[380395633,1755726640105,-500.0,0.00017618,2]
[380395635,1755726640115,-150.0,0.00017618,2]
[380395637,1755726640124,-19999.99,0.00017728,2]
[380395638,1755726640133,-500.0,0.00017892,2]
[380395640,1755726640142,-195.0,0.00017892,2]
[380395642,1755726640151,-1829.97,0.00018082,6]
[380395643,1755726640160,-4801.92313886,0.00018135,2]
[380395645,1755726640170,-213.01,0.00018146,2]
[380395647,1755726640179,-500.0,0.00018166,2]
[380395648,1755726640188,-500.0,0.0001844,2]
[380395650,1755726640197,-500.0,0.00018714,2]
[380395652,1755726640206,-1000.0,0.00018873,2]
[380395653,1755726640216,-774.14062056,0.000189,2]
[380395655,1755726640225,-500.0,0.000189,2]
[380395657,1755726640234,-994.33875738,0.000189,2]
[380395658,1755726640244,-1096.41674161,0.000189,2]
[380395660,1755726640253,-168.73124236,0.000189,2]
[380395662,1755726640262,-563.46608371,0.00018973,2]
[380395663,1755726640272,-500.0,0.00018973,2]
[380395665,1755726640281,-500.0,0.00018973,2]
[380395667,1755726640290,-511.17771888,0.00018973,2]
[380395668,1755726640299,-500.0,0.00018973,2]
[380395670,1755726640308,-500.0,0.00018988,2]
[380395671,1755726640317,-575.0,0.00018988,2]
[380395672,1755726640327,-150.0,0.00018988,2]
[380395673,1755726640337,-500.0,0.00018988,2]
[380395674,1755726640346,-500.0,0.00018988,2]
[380395675,1755726640355,-150.0,0.00018988,2]
[380395676,1755726640364,-150.0,0.00018988,2]
[380395677,1755726640373,-213.18996601,0.00018988,2]
[380395678,1755726640383,-150.0,0.00018988,2]
[380395679,1755726640393,-150.0,0.00018988,2]
[380395680,1755726640403,-194.74642057,0.00018999,5]
[380395682,1755726640419,-1051.88315286,0.00018999,5]
[380395684,1755726640431,-1051.88315286,0.00018999,5]
[380395686,1755726640441,-1051.88315286,0.00018999,5]
[380395688,1755726640451,-1051.88315286,0.00018999,5]
[380395690,1755726640461,-1051.88315284,0.00018999,5]
[380395692,1755726640471,-150.0,0.00018999,2]
[380395694,1755726640480,-307.49930796,0.00018999,2]
[380395696,1755726640490,-152.49279419,0.00018999,2]
[380395698,1755726640500,-500.0,0.00018999,2]
[380395700,1755726640511,-243.42349019,0.00018999,2]
[380395702,1755726640522,-705878.71872689,0.00019,2]
[380395704,1755726640531,-705878.71872689,0.00019,2]
[380395706,1755726640542,-5854.56,0.00019,2]
[380395708,1755726640551,-1466.39571027,0.00019,2]
[380395710,1755726640561,-5000.0,0.00019178,2]
[380395712,1755726640570,-500.0,0.00019262,2]
[380395714,1755726640580,-575.0,0.00019262,2]
[380395716,1755726640590,-150.0,0.00019262,2]
[380395718,1755726640600,-500.0,0.00019262,2]
[380395720,1755726640610,-500.0,0.00019262,2]
[380395723,1755726640620,-150.0,0.00019262,2]
[380395724,1755726640630,-262.27415815,0.00019262,2]
[380395726,1755726640640,-1000.0,0.00019285,2]
[380395728,1755726640663,-1000.0,0.00019521,2]
[380395731,1755726640681,-1000.0,0.00019521,2]
[380395732,1755726640703,-1019.93252457,0.00019521,2]
[380395734,1755726640718,-239.0,0.00019536,2]
[380395736,1755726640728,-575.0,0.00019536,2]
[380395738,1755726640737,-200.0,0.00019536,2]
[380395741,1755726640747,-500.0,0.00019536,2]
[380395743,1755726640756,-500.0,0.00019536,2]
[380395744,1755726640766,-200.0,0.00019536,2]
[380395746,1755726640775,-4801.92313886,0.00019657,2]
[380395748,1755726640785,-575.0,0.0001981,2]
[380395750,1755726640795,-500.0,0.0001981,2]
[380395753,1755726640804,-500.0,0.0001981,2]
[380395755,1755726640815,-168.46,0.00019818,2]
[380395757,1755726640824,-176.52,0.00019863,2]
[380395759,1755726640834,-245.95,0.0002,2]
[380395761,1755726640844,-501.79376621,0.00020068,2]
[380395763,1755726640854,-500.0,0.00020068,2]
[380395765,1755726640864,-575.0,0.00020084,2]
[380395767,1755726640873,-500.0,0.00020084,2]
[380395769,1755726640882,-500.0,0.00020084,2]
[380395771,1755726640891,-213.01,0.00020162,2]
[380395773,1755726640901,-1096.41674153,0.00020167,2]
[380395775,1755726640910,-200.0,0.00020168,2]
[380395777,1755726640919,-200.0,0.00020168,2]
[380395779,1755726640929,-605.16,0.00020187,2]
[380395781,1755726640938,-1829.97,0.00020273,10]
[380395783,1755726640947,-575.0,0.00020358,2]
[380395785,1755726640956,-450.06902607,0.00020358,2]
[380395787,1755726640965,-500.0,0.00020358,2]
[380395789,1755726640974,-575.0,0.00020632,2]
[380395791,1755726640983,-500.0,0.00020632,2]
[380395793,1755726640992,-994.33875738,0.00020898,2]
[380395795,1755726641002,-575.0,0.00020906,2]
[380395797,1755726641011,-500.0,0.00020906,2]
[380395799,1755726641020,-1011.4273,0.00021,2]
[380395801,1755726641029,-4801.92313886,0.00021179,2]
[380395803,1755726641039,-575.0,0.0002118,2]
[380395805,1755726641048,-500.0,0.0002118,2]
[380395807,1755726641057,-150.0,0.00021427,2]
[380395809,1755726641066,-250.0,0.00021427,2]
[380395811,1755726641075,-150.0,0.00021427,2]
[380395813,1755726641085,-150.0,0.00021427,2]
[380395815,1755726641095,-1000.0,0.00021427,2]
[380395817,1755726641104,-1096.41674153,0.00021433,2]
[380395819,1755726641113,-575.0,0.00021454,2]
[380395821,1755726641122,-500.0,0.00021454,2]
[380395823,1755726641132,-150.0,0.00021701,2]
[380395825,1755726641143,-150.0,0.00021701,2]
[380395827,1755726641152,-575.0,0.00021728,2]
[380395829,1755726641162,-500.0,0.00021728,2]
[380395831,1755726641173,-300.0,0.00021739,4]
[380395833,1755726641182,-500.0,0.00021833,2]
[380395835,1755726641192,-5000.0,0.00021918,2]
[380395837,1755726641201,-150.0,0.00021918,2]
[380395839,1755726641212,-200.0,0.00021918,2]
[380395841,1755726641221,-500.0,0.00021918,2]
[380395843,1755726641230,-1876.2,0.00021945,30]
[380395845,1755726641240,-150.0,0.00021975,2]
[380395847,1755726641249,-1700.65863417,0.00021999,2]
[380395849,1755726641260,-32723.50403904,0.00021999,7]
[380395851,1755726641269,-212.04014818,0.00021999,7]
[380395853,1755726641278,-150.0,0.00022,2]
[380395855,1755726641287,-458.46930693,0.00022,7]
[380395857,1755726641297,-575.0,0.00022002,2]
[380395859,1755726641309,-506.0,0.00022002,2]
[380395861,1755726641319,-309.1322159,0.00022014,2]
[380395863,1755726641328,-2222.22,0.000221,2]
[380395865,1755726641337,-213.01,0.00022178,2]
[380395867,1755726641347,-500.0,0.00022192,2]
[380395869,1755726641357,-150.0,0.00022249,2]
[380395870,1755726641367,-575.0,0.00022276,2]
[380395871,1755726641376,-1000.0,0.00022381,2]
[380395872,1755726641386,-1829.97,0.00022465,14]
[380395873,1755726641395,-500.0,0.00022466,2]
[380395874,1755726641405,-150.0,0.00022523,2]
[380395875,1755726641415,-575.0,0.0002255,2]
[380395876,1755726641425,-1096.41674153,0.000227,2]
[380395877,1755726641437,-4801.92313886,0.00022701,2]
[380395878,1755726641447,-500.0,0.0002274,2]
[380395879,1755726641456,-250.0,0.00022797,2]
[380395880,1755726641466,-5854.56,0.000228,7]
[380395881,1755726641477,-843.97594471,0.000228,2]
[380395882,1755726641486,-160.0,0.000228,2]
[380395883,1755726641496,-458.46930693,0.000228,2]
[380395884,1755726641506,-212.04014818,0.000228,2]
[380395886,1755726641515,-600.0,0.00022822,2]
[380395887,1755726641525,-575.0,0.00022824,2]
[380395888,1755726641534,-994.33875738,0.00022896,2]
[380395889,1755726641544,-1500.0,0.00022929,2]
[380395890,1755726641554,-220.34296495,0.00023014,2]
[380395891,1755726641563,-575.0,0.00023098,2]
[380395892,1755726641573,-600.0,0.0002337,2]
[380395893,1755726641583,-575.0,0.00023372,2]
[380395894,1755726641594,-2222.22,0.00023383,2]
[380395895,1755726641603,-937.19609817,0.00023477,2]
[380395896,1755726641612,-2573.67,0.00023562,7]
[380395897,1755726641622,-1000.0,0.0002357,2]
[380395898,1755726641631,-575.0,0.00023646,2]
[380395899,1755726641640,-600.0,0.00023918,2]
[380395900,1755726641661,-575.0,0.0002392,2]
[380395901,1755726641670,-1096.41674153,0.00023966,2]
[380395902,1755726641680,-160.0,0.00024,7]
[380395903,1755726641691,-183.0,0.00024008,3]
[380395904,1755726641700,-575.0,0.00024193,2]
[380395905,1755726641710,-213.01,0.00024195,2]
[380395906,1755726641719,-4801.92313886,0.00024222,2]
[380395907,1755726641728,-600.0,0.00024466,2]
[380395908,1755726641738,-575.0,0.00024467,2]
[380395909,1755726641747,-450.0,0.00024479,6]
[380395910,1755726641756,-9742.47845702,0.00024529,2]
[380395911,1755726641766,-5000.0,0.00024529,2]
[380395912,1755726641775,-5000.0,0.00024529,2]
[380395913,1755726641784,-5000.0,0.00024529,2]
[380395914,1755726641794,-5000.0,0.00024529,2]
[380395915,1755726641803,-1820.0,0.00024557,2]
[380395916,1755726641813,-200.0,0.00024657,2]
[380395917,1755726641823,-1829.97,0.00024657,18]
[380395918,1755726641832,-2000.0,0.00024658,15]
[380395919,1755726641841,-1000.0,0.00024658,2]
[380395920,1755726641851,-252.3,0.00024658,2]
[380395921,1755726641860,-500.0,0.00024658,2]
[380395922,1755726641870,-575.0,0.00024741,2]
[380395923,1755726641879,-2222.22,0.00024767,2]
[380395924,1755726641888,-150.0,0.00024775,2]
[380395925,1755726641897,-862.80395373,0.00024777,2]
[380395926,1755726641907,-1099.65209789,0.00024778,2]
[380395927,1755726641917,-1336.50024205,0.0002478,2]
[380395928,1755726641926,-1573.34838621,0.00024782,2]
[380395929,1755726641936,-1810.19653037,0.00024783,2]
[380395930,1755726641946,-2047.04467453,0.00024785,2]
[380395931,1755726641955,-2283.89281869,0.00024787,2]
[380395932,1755726641965,-2520.74096285,0.00024788,2]
[380395933,1755726641975,-2757.58910702,0.0002479,2]
[380395934,1755726641984,-159.0,0.000248,2]
[380395935,1755726641994,-375.98,0.000248,7]
[380395936,1755726642003,-633372.538656,0.000248,2]
[380395937,1755726642012,-7569.92047225,0.000248,2]
[380395938,1755726642022,-900.0,0.00024826,9]
[380395939,1755726642031,-900.0,0.00024826,9]
[380395940,1755726642040,-900.0,0.00024826,9]
[380395941,1755726642049,-900.0,0.00024826,9]
[380395942,1755726642058,-900.0,0.00024826,9]
[380395943,1755726642068,-900.0,0.00024826,9]
[380395944,1755726642077,-900.0,0.00024826,9]
[380395945,1755726642087,-900.0,0.00024826,9]
[380395947,1755726642096,-1200.0,0.0002487,2]
[380395948,1755726642104,-219.07280249,0.00024873,2]
[380395949,1755726642112,-500.0,0.00024873,2]
[380395950,1755726642121,-500.0,0.00024873,2]
[380395951,1755726642131,-500.0,0.00024873,2]
[380395952,1755726642139,-500.0,0.00024873,2]
[380395953,1755726642147,-500.0,0.00024873,2]
[380395954,1755726642156,-500.0,0.00024873,2]
[380395955,1755726642164,-500.0,0.00024873,2]